Cogmind - Beta 12 @@@ ROGUE MODE // 2023.04.05 @ 19:06:11 Player: ZLD1 Result: Destroyed by L-31 Rogue with Katana Performance ------------- Evolutions (0) 0 Regions Visited (4) 800 Robots Destroyed (31) 155 Value Destroyed (654) 654 Prototype IDs (0) 0 Alien Tech Used (0) 0 Bonus (0) 0 TOTAL SCORE: 1609 Bonus ------- None Cogmind --------- Core Integrity 0/250 Matter 300/300 Energy 100/100 System Corruption 0% Temperature Warm (140) Movement Walking (190) Ox1 Location -9/Mines Parts ------- > --- POWER (1) -------- (None) > --- PROPULSION (2) --- Aluminum Leg > --- UTILITY (2) ------ Medium Storage Unit Seismic Detector > --- WEAPON (2) ------- Medium Laser > --- INVENTORY (10) --- Ion Engine Ion Engine Light Nuclear Core Medium Storage Unit Structural Scanner Signal Interpreter Improved Terrain Scanner Seismic Detector Arc Projector Makeshift Sword Peak State ------------ > --- POWER ------------ Makeshift Power Source > --- PROPULSION ------- Aluminum Leg Aluminum Leg > --- UTILITY ---------- Medium Storage Unit Seismic Detector > --- WEAPON ----------- Arc Projector Medium Laser > --- INVENTORY -------- Ion Engine Ion Engine Light Nuclear Core Medium Storage Unit Structural Scanner Signal Interpreter Improved Terrain Scanner Seismic Detector Arc Projector Makeshift Sword [Rating: 15] Favorites ----------- Power Ion Engine Engine Ion Engine Power Core Light Nuclear Core Propulsion Aluminum Leg Leg Aluminum Leg Hover Unit Hover Unit Utility Seismic Detector Device Seismic Detector Storage Medium Storage Unit Weapon Light Assault Rifle Energy Gun Medium Laser Ballistic Gun Light Assault Rifle Build | -11 -10 -10 -10 -9 ------- Run | Jun Mat Min Exi Min Slots Evolved . | . . . . . Power . | . . . . . Propulsion . | . . . . . Utility . | . . . . . Weapon . | . . . . . Parts Attached 28 | 7 18 . . 3 Power 5 | 1 3 . . 1 Engine 4 | 1 2 . . 1 Core 1 | . 1 . . . Reactor . | . . . . . Propulsion 13 | 2 10 . . 1 Treads . | . . . . . Leg 9 | 2 6 . . 1 Wheel . | . . . . . Hover 4 | . 4 . . . Flight . | . . . . . Utility 4 | 2 2 . . . Device 2 | 1 1 . . . Storage 2 | 1 1 . . . Processor . | . . . . . Hackware . | . . . . . Protection . | . . . . . Artifact . | . . . . . Weapon 6 | 2 3 . . 1 Energy Gun 2 | . 1 . . 1 Energy Cannon . | . . . . . Ballistic Gun 4 | 2 2 . . . Ballistic Cannon . | . . . . . Launcher . | . . . . . Special Weapon . | . . . . . Impact Weapon . | . . . . . Slashing Weapon . | . . . . . Piercing Weapon . | . . . . . Special Melee Weapon . | . . . . . Unidentified Prototypes . | . . . . . Parts Lost 5 | . 2 . . 3 Power 1 | . . . . 1 Propulsion 2 | . 1 . . 1 Utility . | . . . . . Weapon 2 | . 1 . . 1 Highest Loss Streak 3 | . 1 . . 3 To Critical Strikes . | . . . . . Average Slot Usage (%) 99 | . 98 100 100 99 Engine 13 | . 12 14 14 14 Leg 24 | . 18 28 28 28 Hover 3 | . 9 . . . Device 14 | . 14 14 14 14 Storage 14 | . 14 14 14 14 Energy Gun 13 | . 1 14 14 27 Ballistic Gun 14 | . 26 14 14 . Naked Turns . | . . . . . Heaviest Build 22 | 13 19 19 19 22 Greatest Support 20 | 20 20 20 20 20 Greatest Overweight (x) 2 | . 2 . . 1 Average Overweight (x) . | . . . . . Largest Inventory Capacity 10 | 8 10 10 10 10 Average Capacity 9 | 7 8 10 10 10 Most Carried 10 | 4 9 9 10 10 Average Carried 8 | 2 7 9 9 9 Final Capacity 10 | 8 10 10 10 10 Final Carried 10 | 4 9 9 10 10 Class Distribution -------------------- 60% | Mutant 39% | Scavenger-Mutant Dominant Class ---------------- Mutant | -10/Materials Scavenger-Mutant | -10/Mines Scavenger-Mutant | -10/Exiles Mutant | -9/Mines Resources | -11 -10 -10 -10 -9 ----------- Run | Jun Mat Min Exi Min Matter Collected 683 | 302 280 25 . 76 Remotely . | . . . . . Salvage Created 1154 | 215 653 . . 286 Parts 82 | 20 40 . . 22 Haulers Intercepted . | . . . . . Recyclers Shooed 2 | 1 1 . . . Parts Field Recycled . | . . . . . Retrieved Matter . | . . . . . Parts Self-Destructed . | . . . . . Prevented . | . . . . . Kills | -11 -10 -10 -10 -9 ------- Run | Jun Mat Min Exi Min Combat Hostiles Destroyed 21 | . 13 . . 8 Guns 21 | . 13 . . 8 Classes Destroyed 7 | 2 4 . . 1 Worker 1 | . 1 . . . Tunneler 5 | 5 . . . . Recycler 2 | 1 1 . . . Watcher 2 | . 2 . . . Swarmer 7 | . 3 . . 4 Grunt 13 | . 10 . . 3 Brawler 1 | . . . . 1 Best Kill Streak 4 | 4 3 . . 2 Combat Bots Only 2 | . 2 . . 2 Max Kills in Single Turn 1 | 1 1 . . 1 Gunslinging . | . . . . . Exploded . | . . . . . Melee . | . . . . . Uniques/NPCs Destroyed . | . . . . . Combat | -11 -10 -10 -10 -9 -------- Run | Jun Mat Min Exi Min Damage Taken 1232 | . 833 . . 399 Core 255 | . 151 . . 104 Absorbed by Shields . | . . . . . Core Remaining (%) 100 | 100 . . . . Volleys Fired 103 | 16 64 . . 23 Largest 2 | 2 2 . . 2 Hottest 105 | 40 70 . . 105 Shots Fired 201 | 32 128 . . 41 Gun 201 | 32 128 . . 41 Cannon . | . . . . . Launcher . | . . . . . Special . | . . . . . Kinetic 154 | 32 122 . . . Thermal 29 | . 6 . . 23 Explosive . | . . . . . Electromagnetic 18 | . . . . 18 Robot Hit Streak 9 | 7 9 . . 7 Robot Miss Streak 6 | 3 6 . . 2 Penetration Max . | . . . . . Secondary Targets 1 | . 1 . . . Max Gunslinging Chain 1 | . 1 . . . Shots Hit Robots 125 | 20 78 . . 27 Core Hits 57 | 11 34 . . 12 Critical Kills 1 | . 1 . . . Critical Parts Destroyed 1 | . 1 . . . Critical Strikes 5 | . 3 . . 2 Burn 3 | . 1 . . 2 Destroy 2 | . 2 . . . Melee Attacks . | . . . . . Impact . | . . . . . Slashing . | . . . . . Piercing . | . . . . . Sneak Attacks . | . . . . . Combat Hostiles . | . . . . . Follow-up Attacks . | . . . . . Damage Inflicted 1238 | 164 757 . . 317 Guns 1231 | 164 751 . . 316 Cannons . | . . . . . Explosions . | . . . . . Melee . | . . . . . Ramming 7 | . 6 . . 1 Kinetic 865 | 164 701 . . . Thermal 225 | . 50 . . 175 Explosive . | . . . . . Electromagnetic 141 | . . . . 141 Impact . | . . . . . Slashing . | . . . . . Piercing . | . . . . . Highest Corruption . | . . . . . Average Corruption . | . . . . . Corruption Purged . | . . . . . Corruption Blocked . | . . . . . Overload Shots . | . . . . . Overflow Damage . | . . . . . Projectiles . | . . . . . Explosions . | . . . . . Melee . | . . . . . Knockbacks . | . . . . . Impact . | . . . . . Kinetic . | . . . . . Secondary . | . . . . . Self-Inflicted Damage . | . . . . . Shots . | . . . . . Rammed 2 | . 2 . . . Targets Rammed 5 | . 4 . . 1 Kicked 3 | . 2 . . 1 Crushed . | . . . . . Highest Temperature 300 | . 162 . . 300 Average Temperature 71 | . 29 . . 108 Received Heat Transfer 513 | . 447 . . 66 Siege Activations . | . . . . . Robots Corrupted . | . . . . . Combat Hostiles . | . . . . . Parts Fried . | . . . . . Impact Corruptions . | . . . . . Robots Melted . | . . . . . Combat Hostiles . | . . . . . Parts Melted 3 | . 2 . . 1 Heat Transferred 888 | . 222 . . 666 Parts Sabotaged . | . . . . . Parts Stolen . | . . . . . Parts Stripped . | . . . . . Power Chain Reactions . | . . . . . Missiles Intercepted . | . . . . . Alert | -11 -10 -10 -10 -9 ------- Run | Jun Mat Min Exi Min Peak Influence 274 | 30 274 48 . 185 Initial 48 | . 19 48 . . Average 83 | 15 126 48 . 55 Maximum Alert Level 1 | . 1 . . . Low Security (%) 93 | 100 86 100 . 100 Level 1 6 | . 13 . . . Level 2 . | . . . . . Level 3 . | . . . . . Level 4 . | . . . . . Level 5 . | . . . . . High Security . | . . . . . Max Security . | . . . . . Squads Dispatched 5 | . 4 . . 1 Investigation 2 | . 1 . . 1 Extermination . | . . . . . Reinforcement 3 | . 3 . . . Assault . | . . . . . Garrison . | . . . . . Intercept . | . . . . . Searches Triggered . | . . . . . Construction Impeded . | . . . . . Haulers Reinforced . | . . . . . Active Scanning Responses . | . . . . . Cargo Convoy Interrupts . | . . . . . Stealth | -11 -10 -10 -10 -9 --------- Run | Jun Mat Min Exi Min Distress Signals 2 | . 1 . . 1 Communications Jammed . | . . . . . Distress Signals . | . . . . . Times Spotted 41 | . 26 . . 15 Peak Tracking Total 4 | . 4 . . 4 Tactical Retreats 7 | . 2 . . 5 Traps | -11 -10 -10 -10 -9 ------- Run | Jun Mat Min Exi Min Traps Triggered 1 | . 1 . . . Indirectly . | . . . . . Trap Hack Attempts . | . . . . . Triggered . | . . . . . Disarmed . | . . . . . Reprogrammed . | . . . . . Reused . | . . . . . Traps Extracted . | . . . . . Installed . | . . . . . Triggered . | . . . . . Machines | -11 -10 -10 -10 -9 ---------- Run | Jun Mat Min Exi Min Machines Disabled . | . . . . . Max in Single Turn . | . . . . . Machines Repaired . | . . . . . Machines Sabotaged . | . . . . . Overloaded Fab Kills . | . . . . . Hacking | -11 -10 -10 -10 -9 --------- Run | Jun Mat Min Exi Min Machines Accessed 2 | . 1 . . 1 Terminals 1 | . 1 . . . Fabricators . | . . . . . Repair Stations . | . . . . . Recycling Units . | . . . . . Scanalyzers . | . . . . . Garrison Access . | . . . . . Total Hacks 2 | . 1 . . 1 Successful 2 | . 1 . . 1 Failed . | . . . . . Catastrophic . | . . . . . Database Lockouts . | . . . . . Manual 1 | . . . 1 . Terminals 1 | . 1 . . . Fabricators . | . . . . . Repair Stations . | . . . . . Recycling Units . | . . . . . Scanalyzers . | . . . . . Garrison Access . | . . . . . Terminal Hacks 2 | . 1 . . 1 Open Door 1 | . . . . 1 Zone Layout 1 | . 1 . . . Fabricator Hacks . | . . . . . Repair Station Hacks . | . . . . . Recycling Unit Hacks . | . . . . . Scanalyzer . | . . . . . Garrison Access Hacks . | . . . . . Unauthorized Hacks . | . . . . . Terminals . | . . . . . Fabricators . | . . . . . Repair Stations . | . . . . . Recycling Units . | . . . . . Scanalyzers . | . . . . . Garrison Access . | . . . . . Data Cores Recovered . | . . . . . Used . | . . . . . Hacking Detections . | . . . . . Full Trace Events . | . . . . . Feedback Events . | . . . . . Feedback Blocked . | . . . . . Robot Schematics Acquired . | . . . . . Robots Built . | . . . . . Authchips . | . . . . . Time . | . . . . . Total Robot Build Rating . | . . . . . Part Schematics Acquired . | . . . . . Parts Built . | . . . . . Authchips . | . . . . . Time . | . . . . . Total Part Build Rating . | . . . . . Parts Repaired . | . . . . . Time . | . . . . . Parts Recycled . | . . . . . Recycled Matter . | . . . . . Retrieved Matter . | . . . . . Retrieved Components . | . . . . . Parts Scanalyzed . | . . . . . Part Schematics Acquired . | . . . . . Parts Damaged . | . . . . . Bothacking | -11 -10 -10 -10 -9 ------------ Run | Jun Mat Min Exi Min Used RIF Installer . | . . . . . Robots Hacked . | . . . . . Non-combat . | . . . . . Combat . | . . . . . Robot Hacks Applied . | . . . . . Relay Couplers Released . | . . . . . Fabnet Peak Effective % . | . . . . . Robots Rewired . | . . . . . Allies Hacked . | . . . . . Hacks Repelled . | . . . . . Allies | -11 -10 -10 -10 -9 -------- Run | Jun Mat Min Exi Min Total Allies . | . . . . . Largest Group . | . . . . . Highest-Rated Group . | . . . . . Highest-Rated Ally . | . . . . . Total Orders . | . . . . . Ally Attacks . | . . . . . Total Damage . | . . . . . Kills . | . . . . . Allies Corrupted . | . . . . . Allies Melted . | . . . . . Intel | -11 -10 -10 -10 -9 ------- Run | Jun Mat Min Exi Min Robot Analysis Total . | . . . . . Derelict Logs Recovered 1 | . . . . 1 Drone Launches . | . . . . . Drone Recoveries . | . . . . . Exploration | -11 -10 -10 -10 -9 ------------- Run | Jun Mat Min Exi Min Turns Passed 2348 | 169 832 123 501 723 Spaces Moved 1414 | 95 451 103 414 351 Core 6 | 6 . . . . Treads . | . . . . . Legs 1273 | 89 316 103 414 351 Wheels . | . . . . . Hover 135 | . 135 . . . Flight . | . . . . . Fastest Speed 50 | 50 116 120 120 120 Average Speed 136 | 115 121 120 120 184 Slowest Speed 190 | 120 190 120 120 190 Overloaded Moves . | . . . . . Propulsion Burnouts . | . . . . . Robots Hopped . | . . . . . Cave-ins Triggered . | . . . . . Exploration Rate (%) 43 | 4 54 29 88 40 Regions Visited 4 Branch Regions 3 Pre-discovered Areas . | . . . . . Known Exits Taken . | . . . . . Unknown Exits Taken 4 | 1 1 1 1 . Scrap Searched 2 | . . 1 . 1 Spaces Dug . | . . . . . Terrain Destroyed . | . . . . . Melee . | . . . . . Projectile . | . . . . . AOE . | . . . . . Terrain Rammed . | . . . . . Walls Destroyed . | . . . . . Machines Disabled . | . . . . . Actions | -11 -10 -10 -10 -9 --------- Run | Jun Mat Min Exi Min Total 1658 | 128 625 102 418 385 Wait 65 | . 62 . . 3 Move 1410 | 94 450 102 413 351 Hop . | . . . . . Pick Up 25 | 11 11 . 2 1 Fast Attach 9 | . 8 . . 1 Attach 10 | 7 3 . . . Detach . | . . . . . Swap 9 | . 7 . . 2 Drop 20 | . 16 . 1 3 Fire 103 | 16 64 . . 23 Melee . | . . . . . Ram 2 | . 2 . . . Kick 3 | . 2 . . 1 Crush . | . . . . . Escape Stasis . | . . . . . Rewire 2 | . . . 2 . Trap . | . . . . . Miscellaneous . | . . . . . Route ------- -11/Junkyard -10/Materials -10/Mines -10/Exiles -9/Mines History --------- Turn | Location | Event 11 | -11/Junkyard | Discovered new exit (range 16) 170 | -11/Junkyard | Entered Materials 304 | -10/Materials | Build established: Mutant 868 | -10/Materials | Core integrity fell below 50% 992 | -10/Materials | Discovered new exit (range 9) 1002 | -10/Materials | Entered Mines 1018 | -10/Mines | Build established: Scavenger-Mutant 1119 | -10/Mines | Deemed a non-threat by the Exiles lab entrance 1120 | -10/Mines | Discovered new exit (range 5) 1125 | -10/Mines | Entered Exiles 1125 | -10/Exiles | Found Exiles lab destroyed 1611 | -10/Exiles | Discovered new exit (range 12) 1626 | -10/Exiles | Entered Mines 1645 | -9/Mines | Met a Derelict shopkeep closing up shop 1758 | -9/Mines | Learned Materials stockpile data 1941 | -9/Mines | Build established: Mutant 1991 | -9/Mines | Assembled infested the area 1996 | -9/Mines | Assisted by a Guerilla fighting off Assembled 2269 | -9/Mines | Core integrity fell below 20% 2349 | -9/Mines | Destroyed by L-31 Rogue with Katana Last Messages --------------- response squad. 01996_ A derelict emerges from the shadows: "You need to get out of here! I've been tracking a group of Assembled to figure out where they're coming from, and they're closing on this area, come on!" 01997_ EZ-Y8D(h): "I'll hold them off! Go on ahead or try to find another way!" 01997_ HV Slug penetrates Wall. 02000_ K-01 Serf collects debris. 02027_ as-27299 suffers critical hit (Destroy). 02027_ as-27299 knocked back. 02274_ B-36 Bruiser destroyed. 02303_ Heat Sink melted. 02303_ G-34 Mercenary destroyed. 02308_ Dropped Aluminum Leg. 02310_ Acquired 10 matter. 02338_ G-34 Mercenary destroyed. 02339_ Arc Projector destroyed. 02342_ Aluminum Leg destroyed. 02349_ Mak. Power Source destroyed. Map ----- +----------------------------------------------------+ | | | | | ?????????????????????????????????????????????????? | | ?????????????????????????????????????????????????? | | ?????????????????????????????????????????????????? | | ?????????????????????????????????????????????????? | | ?????????????????????????????????????????????????? | | ?????????????????????????????????????????????????? | | ?????????????????????????????????????????????????? | | ?????????????????????????????????????????????????? | | ?????????????????????????????????????????????????? | | ?????????????????????????????????????????????????? | | ?????????????????????????????????????????????????? | | ?????????????????????????????????????????????????? | | #######??????????????????????????????????????????? | | # #??????????????????????????????????????????? | | # """#?????????????#####????????????????????????? | | # """#?????#########* ##???????????????????????? | | # """#?????#!/=%==%=! #???????????????????????? | | # ####### ######%[ ##??????????????????????? | | # *== #????## ###????????????????????? | | # ##%######?????## ##???????????????????? | | ######## #####???????# #???????????????????? | | ???????#[ % #???????# #???????????????????? | | ???????##### #???????## [[ #?????????? ???????? | | ???????????# #????????##=@*=##???????? ???????? | | ???????????# ####??????###l##??????? ????????? | | ?????????### ##???????#=#?????## #?????????? | | ????????## ##??????# #???? % #??????????? | | ????????# #??????# #### #??????????? | | ????##### [ #??????# #???????????? | | ????# ##??????# #????????????? | | ????# ## [ ###???????####### ##????????????? | | ????# ### ##?????????????????? #?????????????? | | ????#=#?#######??????????????????????????????????? | | ????#*#??????????????????????????????????????????? | | ????#%#??????????????????????????????????????????? | | ????#[#??????????????????????????????????????????? | | ?#### ###????????????????????????????????????????? | | ## #????????????????????????????????????????? | | # ##????????????????????????????????????????? | | """ ##?????????????????????????????????????????? | | """ #??????????????????????????????????????????? | | # """ #????????#####?????????????????????????????? | | # #???????## ##????????????????????????????? | | # ##??????# #????????????????????????????? | | # ######### ##???????????????????????????? | | #""""""### ##??????????????????????????? | | #!# ! ]#?## #??????????????????????????? | | # ###[!# ##?## #??????????????????????????? | +----------------------------------------------------+ Best States ------------- Heat Dissipation 25 Energy Generation 15 Energy Capacity 250 Matter Stores 300 Matter Capacity 300 Sight Range 16 Terrain Scan Density 10 Evasion (%) 55 Item Schematics ----------------- None Robot Schematics ------------------ None Fabricated ------------ Nothing Alien Tech Used ----------------- None Achievements -------------- None Challenges ------------ None Game ------ Seed RemoteFlightEdition Manual? 0 Play Time 00:18:31 Cumulative 25.2 hours Start 2023.04.05 @ 18:39:54 End 2023.04.05 @ 19:06:11 Sessions 1 Manual Loads 0 Difficulty Rogue Special Mode None Game No. 58 Rogue 58 Adventurer 0 Explorer 0 Win Type - Total 0 Types 0/0/0/0/0/0/0/0/0 Lore% 24 Gallery% 32 Achievement% 24 Wizard Run 0 Options --------- ASCII 0 Keyboard 0 Movement Mouse Keybinds 0 Fullscreen 1 Font 24/Smallcaps Map View 64x52 Tactical HUD 1 Map Filters NONE Filters NONE Steam 1 RUN: b851fb40-b39f-4425-ae0c-ca5acbea9344